{"text_format":"1","workbook":"xlsx","n_sheets":3,"sheets":["Instructions","Detailed Tracking","Data"],"not_rendered":{"charts":0,"images":1,"macros":1,"external_links":0,"defined_names":3,"comments":0,"pivot_tables":0},"unopened":[],"bounds":{"document_bytes":16777216,"sheet_cells":100000,"rows_first":2000,"rows_last":500,"rows_between":2000,"halvings":0,"cell_chars":16384,"cell_head_chars":4096},"cells_cut":0,"cells_raw":0,"read":"whole","date_system":"1900"}

{"sheet":"Instructions","index":0,"n_rows":0,"n_cols":0,"rows_kept":0,"cut":false,"hidden":false,"merged":[]}

{"sheet":"Detailed Tracking","index":1,"n_rows":52,"n_cols":7,"rows_kept":52,"cut":false,"hidden":false,"merged":[]}
["T&E Reim. Report"]
["V.2024"]
["Period:"]
["Round Trip from Home to Office"]
["Rate (2024)",0.67]
[]
[]
[]
["Date","From","To","Purpose","Charge to:","Miles","Amount"]
[null,null,null,null,null,null,{"$f":"F10*$B$5","v":0}]
[null,null,null,null,null,null,{"$f":"F11*$B$5","v":0}]
[null,null,null,null,null,null,0]
[null,null,null,null,null,null,0]
[null,null,null,null,null,null,0]
[null,null,null,null,null,null,0]
[null,null,null,null,null,null,0]
[null,null,null,null,null,null,0]
[null,null,null,null,null,null,0]
[null,null,null,null,null,null,0]
[null,null,null,null,null,null,0]
[null,null,null,null,null,null,0]
[null,null,null,null,null,null,0]
[null,null,null,null,null,null,0]
[null,null,null,null,null,null,0]
[null,null,null,null,null,null,0]
[null,null,null,null,null,null,0]
[null,null,null,null,null,null,0]
[null,null,null,null,null,null,0]
[null,null,null,null,null,null,0]
[null,null,null,null,null,null,0]
[null,null,null,null,null,null,0]
[null,null,null,null,null,null,0]
[null,null,null,null,null,null,0]
[null,null,null,null,null,null,0]
[null,null,null,null,null,null,0]
[null,null,null,null,null,null,{"$f":"F36*$B$5","v":0}]
[null,null,null,null,null,null,0]
[null,null,null,null,null,null,0]
[null,null,null,null,null,null,0]
[null,null,null,null,null,null,0]
[null,null,null,null,null,null,0]
[null,null,null,null,null,null,0]
[null,null,null,null,null,null,0]
[null,null,null,null,null,null,0]
[null,null,null,null,null,null,0]
[null,null,null,null,null,null,0]
[null,null,null,null,null,null,0]
[null,null,null,null,null,null,0]
[null,null,null,null,null,null,0]
[null,null,null,null,null,null,0]
[null,null,null,null,null,null,0]
[null,null,null,null,null,null,0]

{"sheet":"Data","index":2,"n_rows":77,"n_cols":1,"rows_kept":77,"cut":false,"hidden":false,"merged":[]}
["1171 Roberts Blvd. "]
["1525 Sams"]
["1750 Saint Charles Condo"]
["310 Youngsville Hwy"]
["3197 Richland"]
["39299 Manzella Dr (Capital Crossing)"]
["4440 Hwy 22"]
["508 Time Saver"]
["73015 Hwy 25"]
["766 E I-10 Service Rd (Capital Crossing)"]
["800 Lakeshore (Capital Crossing)"]
["800 Webb "]
["Algiers Development District "]
["Ambassador Tower"]
["Audrey - 115-117 Focis Street"]
["Audrey - 609-611 Metairie Road"]
["Bluebonnet Parc (BILL TO P1)"]
["BR - Office"]
["Briar Meads (James Business Park)"]
["Brookstone"]
["Clearview Parkway Warehouse"]
["Corp - Office"]
["Cypress Bend Development"]
["Cypress Park "]
["Decorator Shoppe/5029 Vets"]
["E. Airline Hwy Warehouse"]
["Eagan"]
["Eagle Run Apartments"]
["Elmwood Oaks Office Park"]
["Entourage Fair Oaks"]
["Executive Tower"]
["Federal City Garage"]
["Federal Fibre Mills"]
["FMOL GME"]
["FMOL Jackson"]
["FMOL Lourdes"]
["FMOL Monroe"]
["FMOL OLOL"]
["GA Lacombe (II)"]
["Gates at McNeese"]
["GE Lacombe "]
["Gulf Coast Bank - Gretna Lofts"]
["Gulf Coast Bank (old 422 Canal)"]
["Home"]
["Jefferson Business Center"]
["Jefferson Financial (3330)"]
["Jefferson Financial (4141)"]
["Jefferson Financial (Denham)"]
["JFCU (facilities)"]
["Johnson Federal"]
["KT Vantage (BILL TO P1)"]
["LAF - Office"]
["LaPlace Lane"]
["Lee Circle (BILL TO P1)"]
["Manhattan IHOP"]
["Manhattan Target"]
["Marina Vista"]
["Northeast Plaza"]
["Other"]
["Patterson Shopping Center"]
["Pinhook Tower"]
["PPQ"]
["Quentin Dastugue"]
["River Regional Properties"]
["Riverview Condos"]
["Room to Spare"]
["S&H Center"]
["Spanish Lake Apartments"]
["Stag (6565) (BILL TO P1)"]
["Stag (6735) (BILL TO P1)"]
["Taylor Education"]
["The District"]
["TSC- Saloom"]
["TyVa- Gordon Square"]
["TyVa- Parkway Plaza"]
["Upperline"]
["Walle Building"]